Cogmind - Beta 9.1 @@@ ROGUE MODE // 2019.11.03 @ 14:48:39 Player: MrPainting Result: Self-destructed Performance ------------- Evolutions (2) 1000 Regions Visited (6) 1200 Robots Destroyed (33) 165 Value Destroyed (814) 814 Prototype IDs (3) 60 Alien Tech Used (0) 0 Bonus (0) 0 TOTAL SCORE: 3239 Bonus ------- None Cogmind --------- Core Integrity 160/550 Matter 300/300 Energy 41/100 System Corruption 0% Temperature Cool (18) Location -8/Storage Parts ------- Power (1) Propulsion (4) Improved Titanium Leg Utility (4) Large Storage Unit Hacking Suite Weapon (2) Inventory (10) Armored Treads Humpback Compact Matter Pod (150) Advanced Weight Redist. System Improved ECM Suite Improved Power Shielding Arc Projector Arc Projector Remote Datajack Peak State ------------ Power Light Deuterium Engine Propulsion Improved Titanium Leg Improved Titanium Leg Improved Titanium Leg Improved Titanium Leg Utility Improved Heat Sink Large Storage Unit Energy Filter Hacking Suite Weapon Shock Maul Axe Inventory Armored Treads Humpback Compact Matter Pod Advanced Weight Redist. System Improved ECM Suite Improved Power Shielding Arc Projector Arc Projector Remote Datajack [Rating: 41] Favorites ----------- Power Light Nuclear Core Engine Light Deuterium Engine Power Core Light Nuclear Core Propulsion Carbon-fiber Leg Treads Light Treads Leg Carbon-fiber Leg Utility Large Storage Unit Device Improved Heat Sink Storage Large Storage Unit Hackware Hacking Suite Weapon Assault Rifle Energy Gun Arc Projector Energy Cannon Beam Cannon Ballistic Gun Assault Rifle Ballistic Cannon Improved Light Cannon Impact Weapon Shock Maul Slashing Weapon Axe Build | -11 -10 -10 -10 -9 -8 -8 ------- Run | Scr Mat Min Exi Min Mat Sto Slots Evolved 4 | . . . . . 4 . Power . | . . . . . . . Propulsion 2 | . . . . . 2 . Utility 2 | . . . . . 2 . Weapon . | . . . . . . . Parts Attached 45 | 5 2 . 8 3 23 4 Power 5 | . . . 2 . 3 . Engine 4 | . . . 1 . 3 . Core 1 | . . . 1 . . . Reactor . | . . . . . . . Propulsion 12 | 2 . . 3 . 7 . Treads 2 | . . . . . 2 . Leg 10 | 2 . . 3 . 5 . Wheel . | . . . . . . . Hover . | . . . . . . . Flight . | . . . . . . . Utility 10 | 1 2 . 1 2 3 1 Device 7 | . 1 . 1 2 3 . Storage 2 | 1 1 . . . . . Processor . | . . . . . . . Hackware 1 | . . . . . . 1 Protection . | . . . . . . . Artifact . | . . . . . . . Weapon 18 | 2 . . 2 1 10 3 Energy Gun 3 | . . . . . 3 . Energy Cannon 3 | . . . 2 . 1 . Ballistic Gun 5 | 2 . . . 1 1 1 Ballistic Cannon 5 | . . . . . 4 1 Launcher . | . . . . . . . Special Weapon . | . . . . . . . Impact Weapon 1 | . . . . . . 1 Slashing Weapon 1 | . . . . . 1 . Piercing Weapon . | . . . . . . . Special Melee Weapon . | . . . . . . . Unidentified Prototypes 3 | . . . . 1 . 2 Parts Lost 13 | . . . . . 6 7 Power 2 | . . . . . 1 1 Propulsion 5 | . . . . . 2 3 Utility 3 | . . . . . 1 2 Weapon 3 | . . . . . 2 1 Highest Loss Streak 6 | . . . . . 5 6 Average Slot Usage (%) 89 | . 79 85 98 100 78 91 Engine 1 | . . . 2 . 4 4 Core 5 | . . . 10 14 3 . Leg 27 | . 28 28 28 28 24 36 Device 14 | . 8 14 14 14 18 16 Storage 12 | . 14 14 14 14 9 9 Energy Cannon 8 | . . . 20 16 2 . Ballistic Gun 12 | . 28 28 7 11 2 . Ballistic Cannon 1 | . . . . . 7 1 Naked Turns . | . . . . . . . Heaviest Build 33 | 8 21 21 28 28 33 31 Greatest Support 80 | 20 20 20 30 30 80 80 Greatest Overweight (x) 1 | 1 1 1 1 . 1 1 Average Overweight (x) . | . . 1 . . . . Largest Inventory Capacity 12 | 6 12 10 10 10 10 10 Average Capacity 9 | 5 9 10 10 10 10 10 Most Carried 10 | . 4 6 10 10 10 10 Average Carried 7 | . 2 4 8 9 9 10 Final Capacity 10 | 6 10 10 10 10 10 10 Final Carried 10 | . 4 6 10 10 10 10 Class Distribution -------------------- 62% | Mutant 37% | Scavenger-Mutant Dominant Class ---------------- Mutant | -10/Materials Mutant | -10/Mines Scavenger-Mutant | -10/Exiles Scavenger-Mutant | -9/Mines Mutant | -8/Materials Mutant | -8/Storage Resources | -11 -10 -10 -10 -9 -8 -8 ----------- Run | Scr Mat Min Exi Min Mat Sto Matter Collected 1174 | 237 104 176 234 51 357 15 Remotely . | . . . . . . . Salvage Created 1493 | . 132 . 635 56 494 176 Parts 94 | . 10 . 29 5 43 7 Haulers Intercepted 2 | . . . . . 2 . Recyclers Shooed 1 | . 1 . . . . . Parts Field Recycled . | . . . . . . . Retrieved Matter . | . . . . . . . Parts Self-Destructed . | . . . . . . . Prevented . | . . . . . . . Kills | -11 -10 -10 -10 -9 -8 -8 ------- Run | Scr Mat Min Exi Min Mat Sto Combat Hostiles Destroyed 24 | . 4 . 4 3 10 3 Melee 8 | . . . . . 5 3 Guns 7 | . 4 . 1 2 . . Cannons 9 | . . . 3 1 5 . Classes Destroyed 9 | . 4 . 1 . 3 1 Worker 4 | . 1 . . . 2 1 Builder 1 | . . . . . 1 . Hauler 2 | . . . . . 2 . Watcher 2 | . 1 . . . 1 . Swarmer 9 | . 3 . . 3 3 . Grunt 11 | . 1 . 3 . 5 2 Duelist 1 | . . . . . . 1 Sentry 2 | . . . . . 2 . Hunter 1 | . . . 1 . . . Best Kill Streak 5 | . 3 . 1 3 5 3 Combat Bots Only 4 | . 3 . 1 3 4 2 Max Kills in Single Turn 2 | . 2 . 1 1 1 1 Gunslinging 1 | . 1 . . . . . Exploded . | . . . . . . . Melee 1 | . . . . . 1 1 Uniques/NPCs Destroyed . | . . . . . . . Combat | -11 -10 -10 -10 -9 -8 -8 -------- Run | Scr Mat Min Exi Min Mat Sto Damage Taken 2127 | . 101 . . 240 755 1031 Core 466 | . 16 . . 60 131 259 Absorbed by Shields . | . . . . . . . Core Remaining (%) 84 | 100 . . . 69 . . Volleys Fired 112 | . 17 2 42 9 40 2 Largest 2 | . 2 2 2 2 2 1 Hottest 120 | . 40 40 120 120 110 44 Shots Fired 202 | . 34 4 84 18 60 2 Gun 96 | . 34 4 29 7 22 . Cannon 106 | . . . 55 11 38 2 Launcher . | . . . . . . . Special . | . . . . . . . Kinetic 115 | . 34 4 29 7 39 2 Thermal 69 | . . . 55 11 3 . Explosive . | . . . . . . . Electromagnetic 18 | . . . . . 18 . Robot Hit Streak 15 | . 4 2 15 5 11 3 Robot Miss Streak 4 | . 2 . 3 4 4 . Penetration Max . | . . . . . . . Secondary Targets 2 | . 2 . . . . . Max Gunslinging Chain 1 | . 1 . . . . . Shots Hit Robots 154 | . 17 2 54 10 47 24 Core Hits 63 | . 8 1 22 3 25 4 Critical Hits 3 | . . . 2 . 1 . Critical Kills 1 | . . . . . 1 . Critical Parts Destroyed 2 | . . . 2 . . . Melee Attacks 38 | . . . . . 9 29 Impact 27 | . . . . . . 27 Slashing 11 | . . . . . 9 2 Piercing . | . . . . . . . Sneak Attacks 1 | . . . . . . 1 Combat Hostiles . | . . . . . . . Follow-up Attacks 1 | . . . . . . 1 Damage Inflicted 3121 | . 255 26 854 154 1064 768 Guns 743 | . 255 26 192 49 221 . Cannons 1371 | . . . 662 105 562 42 Explosions . | . . . . . . . Melee 1007 | . . . . . 281 726 Ramming . | . . . . . . . Kinetic 1141 | . 255 26 192 49 577 42 Thermal 803 | . . . 662 105 36 . Explosive . | . . . . . . . Electromagnetic 170 | . . . . . 170 . Impact 694 | . . . . . . 694 Slashing 313 | . . . . . 281 32 Piercing . | . . . . . . . Highest Corruption . | . . . . . . . Average Corruption . | . . . . . . . Corruption Purged . | . . . . . . . Overload Shots . | . . . . . . . Overflow Damage 183 | . . . 27 . 24 132 Projectiles 36 | . . . 27 . 9 . Explosions . | . . . . . . . Melee 147 | . . . . . 15 132 Knockbacks 14 | . . . . . 7 7 Impact 5 | . . . . . . 5 Kinetic 7 | . . . . . 7 . Secondary 2 | . . . . . . 2 Self-Inflicted Damage . | . . . . . . . Shots . | . . . . . . . Rammed . | . . . . . . . Targets Rammed . | . . . . . . . Kicked . | . . . . . . . Crushed . | . . . . . . . Highest Temperature 168 | . . . 168 48 23 7 Average Temperature 52 | . . . 56 26 15 7 Received Heat Transfer 861 | . 24 . . . 378 459 Siege Activations . | . . . . . . . Robots Corrupted . | . . . . . . . Combat Hostiles . | . . . . . . . Parts Fried 3 | . . . . . . 3 Impact Corruptions 5 | . . . . . . 5 Robots Melted . | . . . . . . . Combat Hostiles . | . . . . . . . Parts Melted 1 | . . . 1 . . . Heat Transferred 1628 | . . . 1332 222 74 . Parts Sabotaged . | . . . . . . . Parts Stolen . | . . . . . . . Parts Stripped . | . . . . . . . Power Chain Reactions . | . . . . . . . Missiles Intercepted . | . . . . . . . Alert | -11 -10 -10 -10 -9 -8 -8 ------- Run | Scr Mat Min Exi Min Mat Sto Peak Influence 187 | . 117 45 . 75 187 138 Average Influence 58 | . 64 30 . 58 76 105 Maximum Alert Level . | . . . . . . . Low Security (%) 100 | . . . . . . . Level 1 . | . . . . . . . Level 2 . | . . . . . . . Level 3 . | . . . . . . . Level 4 . | . . . . . . . Level 5 . | . . . . . . . High Security . | . . . . . . . Max Security . | . . . . . . . Squads Dispatched 5 | . 1 . . . 1 3 Investigation 1 | . . . . . 1 . Extermination . | . . . . . . . Reinforcement 2 | . 1 . . . . 1 Assault 2 | . . . . . . 2 Garrison . | . . . . . . . Intercept . | . . . . . . . Construction Impeded . | . . . . . . . Haulers Reinforced . | . . . . . . . Stealth | -11 -10 -10 -10 -9 -8 -8 --------- Run | Scr Mat Min Exi Min Mat Sto Distress Signals 3 | . 1 . . . 1 1 Communications Jammed . | . . . . . . . Distress Signals . | . . . . . . . Times Spotted 47 | . 8 . . 4 18 17 Peak Tracking Total 9 | . 4 . . 4 4 9 Tactical Retreats 2 | . . . . . . 2 Traps | -11 -10 -10 -10 -9 -8 -8 ------- Run | Scr Mat Min Exi Min Mat Sto Traps Triggered 1 | . . . . . 1 . Indirectly . | . . . . . . . Trap Hack Attempts . | . . . . . . . Triggered . | . . . . . . . Disarmed . | . . . . . . . Reprogrammed . | . . . . . . . Reused . | . . . . . . . Traps Extracted . | . . . . . . . Installed . | . . . . . . . Triggered . | . . . . . . . Machines | -11 -10 -10 -10 -9 -8 -8 ---------- Run | Scr Mat Min Exi Min Mat Sto Machines Disabled 1 | . . . . 1 . . Max in Single Turn 1 | . . . . 1 . . Machines Sabotaged . | . . . . . . . Garrisons Compromised . | . . . . . . . Overloaded Fab Kills . | . . . . . . . Fab Network Shutdowns . | . . . . . . . Hacking | -11 -10 -10 -10 -9 -8 -8 --------- Run | Scr Mat Min Exi Min Mat Sto Machines Accessed 3 | . . . . . 2 1 Terminals 1 | . . . . . . 1 Fabricators . | . . . . . . . Repair Stations . | . . . . . . . Recycling Units . | . . . . . . . Scanalyzers 2 | . . . . . 2 . Garrison Access . | . . . . . . . Total Hacks 10 | . . . . . 6 4 Successful 8 | . . . . . 6 2 Failed 2 | . . . . . . 2 Catastrophic . | . . . . . . . Database Lockouts . | . . . . . . . Manual 2 | . . . . . . 2 Terminals 4 | . . . . . . 4 Fabricators . | . . . . . . . Repair Stations . | . . . . . . . Recycling Units . | . . . . . . . Scanalyzers 6 | . . . . . 6 . Garrison Access . | . . . . . . . Terminal Hacks 1 | . . . . . . 1 Open Door 1 | . . . . . . 1 Fabricator Hacks . | . . . . . . . Repair Station Hacks . | . . . . . . . Recycling Unit Hacks . | . . . . . . . Scanalyzer 6 | . . . . . 6 . Insert Component 3 | . . . . . 3 . Analyze 3 | . . . . . 3 . Garrison Access Hacks . | . . . . . . . Unauthorized Hacks 2 | . . . . . . 2 Terminals 1 | . . . . . . 1 Botnet 1 | . . . . . . 1 Fabricators . | . . . . . . . Repair Stations . | . . . . . . . Recycling Units . | . . . . . . . Scanalyzers . | . . . . . . . Garrison Access . | . . . . . . . Data Cores Recovered . | . . . . . . . Used . | . . . . . . . Hacking Detections 3 | . . . . . 2 1 Full Trace Events 1 | . . . . . 1 . Feedback Events . | . . . . . . . Feedback Blocked . | . . . . . . . Robot Schematics Acquired . | . . . . . . . Robots Built . | . . . . . . . Matter . | . . . . . . . Time . | . . . . . . . Total Robot Build Rating . | . . . . . . . Part Schematics Acquired 3 | . . . . . 3 . Parts Built . | . . . . . . . Matter . | . . . . . . . Time . | . . . . . . . Total Part Build Rating . | . . . . . . . Parts Repaired . | . . . . . . . Time . | . . . . . . . Parts Recycled . | . . . . . . . Recycled Matter . | . . . . . . . Retrieved Matter . | . . . . . . . Retrieved Components . | . . . . . . . Parts Scanalyzed 3 | . . . . . 3 . Part Schematics Acquired 3 | . . . . . 3 . Parts Damaged 1 | . . . . . 1 . Bothacking | -11 -10 -10 -10 -9 -8 -8 ------------ Run | Scr Mat Min Exi Min Mat Sto Used RIF Installer . | . . . . . . . Robots Hacked . | . . . . . . . Non-combat . | . . . . . . . Combat . | . . . . . . . Robot Hacks Applied . | . . . . . . . Relay Couplers Released . | . . . . . . . Robots Rewired . | . . . . . . . Allies Hacked . | . . . . . . . Hacks Repelled . | . . . . . . . Allies | -11 -10 -10 -10 -9 -8 -8 -------- Run | Scr Mat Min Exi Min Mat Sto Total Allies 2 | . . . . . . 2 Largest Group 2 | . . . . . . 2 Highest-Rated Group 62 | . . . . . . 62 Highest-Rated Ally 31 | . . . . . . 31 Total Orders . | . . . . . . . Ally Attacks 11 | . . . . . . 11 Total Damage 146 | . . . . . . 146 Kills . | . . . . . . . Allies Corrupted . | . . . . . . . Allies Melted . | . . . . . . . Intel | -11 -10 -10 -10 -9 -8 -8 ------- Run | Scr Mat Min Exi Min Mat Sto Robot Analysis Total . | . . . . . . . Derelict Logs Recovered 2 | . . 1 . 1 . . Drone Launches . | . . . . . . . Drone Recoveries . | . . . . . . . Exploration | -11 -10 -10 -10 -9 -8 -8 ------------- Run | Scr Mat Min Exi Min Mat Sto Turns Passed 2657 | 46 167 592 751 349 594 158 Spaces Moved 1594 | 35 78 390 466 250 322 53 Core 4 | 4 . . . . . . Treads 29 | . . . . . 29 . Legs 1561 | 31 78 390 466 250 293 53 Wheels . | . . . . . . . Hover . | . . . . . . . Flight . | . . . . . . . Fastest Speed 50 | 50 120 150 120 120 120 130 Average Speed 132 | 113 135 150 128 120 128 136 Slowest Speed 180 | 120 150 150 150 120 180 160 Overloaded Moves . | . . . . . . . Propulsion Burnouts . | . . . . . . . Robots Hopped . | . . . . . . . Cave-ins Triggered . | . . . . . . . Exploration Rate (%) 41 | 4 22 92 88 50 26 9 Regions Visited 6 Branch Regions 4 Pre-discovered Areas 1 | . . 1 . . . . Known Exits Taken 1 | . . . . . 1 . Unknown Exits Taken 5 | 1 1 1 1 1 . . Scrap Searched 2 | . . 2 . . . . Spaces Dug . | . . . . . . . Terrain Destroyed . | . . . . . . . Melee . | . . . . . . . Projectile . | . . . . . . . AOE . | . . . . . . . Actions | -11 -10 -10 -10 -9 -8 -8 --------- Run | Scr Mat Min Exi Min Mat Sto Total 1871 | 39 106 393 535 280 424 94 Wait 32 | . 4 . . 15 7 6 Move 1588 | 34 77 389 465 249 321 53 Hop . | . . . . . . . Pick Up 29 | . 5 2 11 2 9 . Fast Attach 25 | 5 1 . . . 16 3 Attach 5 | . 1 . 1 . 3 . Detach . | . . . . . . . Swap 15 | . . . 7 3 4 1 Drop 28 | . 1 . 8 2 15 2 Fire 112 | . 17 2 42 9 40 2 Melee 36 | . . . . . 9 27 Ram . | . . . . . . . Kick . | . . . . . . . Crush . | . . . . . . . Escape Stasis . | . . . . . . . Rewire 1 | . . . 1 . . . Trap . | . . . . . . . Miscellaneous . | . . . . . . . Route ------- -11/Scrapyard -10/Materials -10/Mines (discovered 3 exits: [*Mat x2] / [*Exi]) -10/Exiles -9/Mines -8/Materials (discovered 3 exits: Fac / *Sto x2) -8/Storage History --------- Turn | Location | Event 11 | -11/Scrapyard | Discovered new exit (range 15) 47 | -11/Scrapyard | Entered Materials 157 | -10/Materials | Discovered new exit (range 15) 214 | -10/Materials | Entered Mines 219 | -10/Mines | Discovered new exit (range 8) 220 | -10/Mines | Learned location of Storage (-8) 304 | -10/Mines | Build established: Mutant 565 | -10/Mines | Learned 8 Materials zone layouts 662 | -10/Mines | Discovered new exit (range 5) 798 | -10/Mines | Deemed a non-threat by the Exiles lab entrance 800 | -10/Mines | Discovered new exit (range 5) 806 | -10/Mines | Entered Exiles 806 | -10/Exiles | Found Exiles lab destroyed 1429 | -10/Exiles | Build established: Scavenger-Mutant 1545 | -10/Exiles | Discovered new exit (range 10) 1557 | -10/Exiles | Entered Mines 1590 | -9/Mines | Found a damaged Exp. Sensor Array with a note attached 1591 | -9/Mines | Met a Derelict bent on vengeance 1598 | -9/Mines | Found Prototype Device 1716 | -9/Mines | Assembled infested the area 1721 | -9/Mines | Assisted by a Guerilla fighting off Assembled 1814 | -9/Mines | Learned Materials trap positions 1863 | -9/Mines | Identified Exp. Sensor Array 1896 | -9/Mines | Discovered new exit (range 9) 1906 | -9/Mines | Entered Materials 1906 | -8/Materials | Evolved 4 slots: Propulsion x2, Utility x2 1906 | -8/Materials | Discovered new exit (range 8) 1907 | -8/Materials | Identified exit to Factory 1907 | -8/Materials | Identified exit to Storage 1908 | -8/Materials | Loaded intel: 16 trap records 2231 | -8/Materials | Lost 5 parts (1p2n1u1w) 2451 | -8/Materials | Build established: Mutant 2500 | -8/Materials | Entered Storage 2603 | -8/Storage | Met a pair of Derelict thieves 2653 | -8/Storage | Core integrity fell below 50% 2658 | -8/Storage | Self-destructed Last Messages --------------- 02636_ G-47 Trooper unfolds itself. 02639_ Destroyed Melee Analysis Suite. 02639_ L-31 Rogue system corrupted by crushing effect. 02643_ Energy Filter destroyed. 02643_ YZ-Z9C(g) destroyed. 02644_ Assault Cannon severed. 02646_ Destroyed Melee Analysis Suite. 02646_ L-31 Rogue system corrupted by crushing effect. 02646_ Core Shielding fried. 02646_ Imp. Ion Engine fried. 02646_ L-31 Rogue destroyed. 02646_ Imp. Heat Sink destroyed. 02647_ K-01 Serf collects debris. 02649_ K0-1S3(g) destroyed. 02653_ Imp. Titanium Leg destroyed. 02654_ K-01 Serf collects debris. 02657_ Imp. Titanium Leg destroyed. 02658_ K-01 Serf collects debris. 02658_ Imp. Titanium Leg destroyed. 02658_ Shock Maul destroyed. Map ----- +----------------------------------------------------+ | | | | | | | | | | | | | | | | | ??????????????????????????????????????????????? | | ??????????????????????????????????????????????? | | ???????????????????????????????###????????????? | | ???????????????????????????????# #????????????? | | ??????????????????????????????## #????????????? | | ??????????????????????????????#T #????????????? | | ????????????????################+#####????????? | | ????????????????# #????????? | | ????????????????# #????????? | | ????????????????# #????????? | | ????????????????# ##################????????? | | ????????????????# #??######?????????????????? | | ????????????????# #### ] #?????????????????? | | ????????????????# ##T# ]] #?????????????????? | | ????????????????# %#%k"g =%#?????????????????? | | ????????????????#%%=/%=ggigg#?????????????????? | | ????????????????# !#[ "gl[/#?????????????????? | | ????????????? # #!@[[#?????????????????? | | ?????????? #########?????????????????? | | ??????? #?????????????????????????? | | ????????###+##### #?????????????????????????? | | ????????????????# #?????????????????????????? | | ????????????????# +?????????????????????????? | | ????????????????# ###?????????????????????????? | | ????????????????# ????????????????????????????? | | ????????????????# ????????????????????????????? | | ????????????????# ????????????????????????????? | | ????????????????# ????????????????????????????? | | ????????????????# ????????????????????????????? | | ????????????????#?????????????????????????????? | | ??????????????????????????????????????????????? | | ??????????????????????????????????????????????? | | ??????????????????????????????????????????????? | | ??????????????????????????????????????????????? | | ??????????????????????????????????????????????? | | ??????????????????????????????????????????????? | | ??????????????????????????????????????????????? | | ??????????????????????????????????????????????? | | ??????????????????????????????????????????????? | | ??????????????????????????????????????????????? | | ??????????????????????????????????????????????? | | ??????????????????????????????????????????????? | +----------------------------------------------------+ Best States ------------- Heat Dissipation 45 Energy Generation 14 Energy Capacity 250 Matter Stores 300 Matter Capacity 300 Sight Range 16 Terrain Scan Density 10 Additional Mass Support 9 Evasion (%) 40 Recoil Reduction 2 Energy Filtering 30 Offensive Hacking 10 Item Schematics ----------------- Exp. Sensor Array | -8/Materials | Scanalyzed Arm. Treads | -8/Materials | Scanalyzed Humpback | -8/Materials | Scanalyzed Robot Schematics ------------------ None Fabricated ------------ Nothing Alien Tech Used ----------------- None Achievements -------------- None Challenges ------------ None Game ------ Seed ShadeLatentSpear Manual? 0 Play Time 00:22:29 Cumulative 104.5 hours Start 2019.11.03 @ 14:29:05 End 2019.11.03 @ 14:48:39 Sessions 1 Manual Loads 0 Difficulty Rogue Special Mode None Game No. 172 Rogue 172 Adventurer 0 Explorer 0 Win Type - Total 0 Types 0/0/0/0/0/0/0 Lore% 33 Gallery% 48 Achievement% 34 Wizard Run 0 Options --------- ASCII 0 Keyboard 0 Movement Mouse Keybinds 0 Fullscreen 1 Font 18/SmallcapsGlow Map View 76x50 Tactical HUD 1 Map Filters NONE Filters NONE Steam 1 RUN: ebf1f48c-babc-450a-b2a2-a6f32f6257c2